fUSD/lending_fUSD_20250123
["ID","MTS","AMOUNT","RATE_DAILY","PERIOD"]
[350057476,1737594640192,-153.48,0.00019569,2]
[350057477,1737594640202,-3781.0722,0.00019624,2]
[350057478,1737594640211,-2201.44234711,0.00019625,2]
[350057479,1737594640220,-629.45,0.00019715,2]
[350057480,1737594640229,-500.0,0.00019724,2]
[350057481,1737594640238,-500.0,0.00019724,2]
[350057482,1737594640247,-500.0,0.00019724,2]
[350057483,1737594640256,-500.0,0.00019724,2]
[350057484,1737594640265,-834.43,0.00019724,2]
[350057485,1737594640274,-533.78,0.00019724,2]
[350057486,1737594640283,-701.47,0.00019724,2]
[350057487,1737594640292,-1099.03,0.00019724,2]
[350057488,1737594640301,-500.0,0.00019724,2]
[350057489,1737594640309,-159.501348,0.00019724,2]
[350057490,1737594640318,-1207.66,0.00019724,2]
[350057491,1737594640327,-584.3,0.00019724,2]
[350057492,1737594640335,-663.61,0.00019724,2]
[350057493,1737594640344,-1123.9,0.00019724,2]
[350057494,1737594640357,-500.0,0.00019724,2]
[350057495,1737594640366,-570.62,0.00019724,2]
[350057496,1737594640375,-500.0,0.00019724,2]
[350057497,1737594640384,-500.0,0.00019724,2]
[350057498,1737594640395,-1008.17,0.00019724,2]
[350057499,1737594640404,-500.0,0.00019724,2]
[350057500,1737594640413,-500.0,0.00019725,2]
[350057501,1737594640423,-500.0,0.00019725,2]
[350057502,1737594640432,-500.0,0.00019725,2]
[350057503,1737594640441,-591.31,0.00019725,2]
[350057504,1737594640451,-505.3,0.00019725,2]
[350057505,1737594640460,-500.0,0.00019725,2]
[350057506,1737594640470,-500.0,0.00019725,2]
[350057507,1737594640479,-500.0,0.00019725,2]
[350057508,1737594640488,-500.0,0.00019725,2]
[350057509,1737594640497,-500.0,0.00019725,2]
[350057510,1737594640506,-500.0,0.00019725,2]
[350057511,1737594640516,-500.0,0.00019725,2]
[350057512,1737594640526,-500.0,0.00019725,2]
[350057514,1737594640536,-500.0,0.00019725,2]
[350057515,1737594640546,-500.0,0.00019725,2]
[350057517,1737594640556,-500.0,0.00019725,2]
[350057519,1737594640567,-500.0,0.00019725,2]
[350057521,1737594640576,-500.0,0.00019725,2]
[350057523,1737594640586,-500.0,0.00019725,2]
[350057525,1737594640596,-500.0,0.00019725,2]
[350057527,1737594640605,-500.0,0.00019725,2]
[350057529,1737594640614,-500.0,0.00019725,2]
[350057531,1737594640623,-500.0,0.00019725,2]
[350057533,1737594640633,-500.0,0.00019725,2]
[350057535,1737594640643,-500.0,0.00019725,2]
[350057537,1737594640654,-500.0,0.00019725,2]
[350057539,1737594640664,-500.0,0.00019725,2]
[350057541,1737594640673,-500.0,0.00019725,2]
[350057543,1737594640682,-500.0,0.00019725,2]
[350057545,1737594640691,-500.0,0.00019725,2]
[350057546,1737594640701,-500.0,0.00019725,2]
[350057548,1737594640711,-500.0,0.00019725,2]
[350057550,1737594640721,-500.0,0.00019725,2]
[350057552,1737594640731,-500.0,0.00019725,2]
[350057554,1737594640740,-500.0,0.00019725,2]
[350057556,1737594640749,-293.48372265,0.00019725,2]
[350057558,1737594640764,-500.0,0.00019725,2]
[350057560,1737594640774,-500.0,0.00019725,2]
[350057562,1737594640783,-500.0,0.00019725,2]
[350057581,1737594640792,-500.0,0.00019725,2]
[350057583,1737594640969,-500.0,0.00019725,2]
[350057585,1737594640979,-518.63,0.00019725,2]
[350057587,1737594640989,-698.97,0.00019725,2]
[350057589,1737594640998,-500.0,0.00019725,2]
[350057591,1737594641008,-500.0,0.00019725,2]
[350057593,1737594641017,-500.0,0.00019725,2]
[350057595,1737594641027,-1509.45,0.00019725,2]
[350057597,1737594641036,-592.81,0.00019725,2]
[350057599,1737594641046,-623.27,0.00019725,2]
[350057601,1737594641055,-689.26,0.00019725,2]
[350057603,1737594641064,-500.0,0.00019725,2]
[350057605,1737594641074,-500.0,0.00019725,2]
[350057607,1737594641084,-500.0,0.00019725,2]
[350057609,1737594641093,-500.0,0.00019725,2]
[350057611,1737594641102,-500.0,0.00019725,2]
[350057613,1737594641111,-812.87,0.00019725,2]
[350057615,1737594641121,-1069.1,0.00019725,2]
[350057617,1737594641130,-1056.13,0.00019725,2]
[350057619,1737594641139,-500.0,0.00019725,2]
[350057621,1737594641148,-500.0,0.00019725,2]
[350057623,1737594641159,-500.0,0.00019725,2]
[350057625,1737594641168,-751.52,0.00019725,2]
[350057627,1737594641178,-500.0,0.00019725,2]
[350057629,1737594641187,-563.13,0.00019725,2]
[350057631,1737594641196,-500.0,0.00019725,2]
[350057633,1737594641205,-1000.0,0.00019725,2]
[350057635,1737594641214,-500.0,0.00019725,2]
[350057637,1737594641223,-758.25,0.00019725,2]
[350057639,1737594641233,-2050.79,0.00019725,2]
[350057640,1737594641242,-1163.87,0.00019725,2]
[350057642,1737594641252,-1524.26,0.00019725,2]
[350057644,1737594641261,-500.0,0.00019725,2]
[350057647,1737594641270,-500.0,0.00019725,2]
[350057648,1737594641280,-514.7,0.00019725,2]
[350057650,1737594641289,-1237.23,0.00019725,2]
[350057652,1737594641299,-500.0,0.00019725,2]
[350057654,1737594641308,-500.0,0.00019725,2]
[350057656,1737594641318,-500.0,0.00019725,2]
[350057658,1737594641327,-1293.23,0.00019725,2]
[350057660,1737594641336,-718.49,0.00019725,2]
[350057662,1737594641347,-500.0,0.00019725,2]
[350057664,1737594641357,-500.0,0.00019725,2]
[350057666,1737594641366,-500.0,0.00019725,2]
[350057668,1737594641375,-801.37,0.00019725,2]
[350057670,1737594641385,-500.0,0.00019725,2]
[350057672,1737594641394,-500.0,0.00019725,2]
[350057674,1737594641405,-500.0,0.00019725,2]
[350057676,1737594641414,-500.0,0.00019725,2]
[350057678,1737594641424,-597.66,0.00019725,2]
[350057680,1737594641434,-500.0,0.00019725,2]
[350057682,1737594641443,-500.0,0.00019725,2]
[350057684,1737594641452,-500.0,0.00019725,2]
[350057686,1737594641462,-500.0,0.00019725,2]
[350057688,1737594641471,-500.0,0.00019725,2]
[350057690,1737594641480,-500.0,0.00019725,2]
[350057692,1737594641489,-1018.98,0.00019725,2]
[350057694,1737594641498,-500.0,0.00019725,2]
[350057696,1737594641508,-500.0,0.00019725,2]
[350057698,1737594641517,-500.0,0.00019725,2]
[350057700,1737594641525,-500.0,0.00019725,2]
[350057702,1737594641534,-500.0,0.00019725,2]
[350057704,1737594641544,-215.2,0.00019725,2]
[350057706,1737594641553,-437.813825,0.00019725,2]
[350057708,1737594641561,-677.45,0.00019725,2]
[350057710,1737594641571,-634.28,0.00019725,2]
[350057712,1737594641580,-500.0,0.00019725,2]
[350057714,1737594641591,-500.0,0.00019725,2]
[350057716,1737594641600,-1419.48,0.00019725,2]
[350057718,1737594641609,-500.0,0.00019725,2]
[350057720,1737594641619,-2512.85,0.00019725,2]
[350057721,1737594641627,-500.0,0.00019725,2]
[350057723,1737594641637,-500.0,0.00019725,2]
[350057725,1737594641646,-500.0,0.00019725,2]
[350057727,1737594641656,-500.0,0.00019725,2]
[350057729,1737594641666,-500.0,0.00019725,2]
[350057731,1737594641675,-529.29,0.00019725,2]
[350057733,1737594641684,-500.0,0.00019725,2]
[350057735,1737594641693,-500.0,0.00019725,2]
[350057737,1737594641702,-500.0,0.00019725,2]
[350057739,1737594641712,-500.0,0.00019725,2]
[350057740,1737594641721,-500.0,0.00019725,2]
[350057741,1737594641730,-500.0,0.00019725,2]
[350057742,1737594641739,-500.0,0.00019725,2]
[350057743,1737594641749,-598.68,0.00019725,2]
[350057744,1737594641759,-1121.13,0.00019725,2]
[350057745,1737594641769,-500.0,0.00019725,2]
[350057746,1737594641778,-500.0,0.00019725,2]
[350057747,1737594641787,-500.0,0.00019725,2]
[350057748,1737594641796,-500.0,0.00019725,2]
[350057749,1737594641805,-500.0,0.00019725,2]
[350057751,1737594641815,-204.86966012,0.00019726,2]
[350057753,1737594641824,-500.0,0.00019726,2]
[350057754,1737594641833,-500.0,0.00019726,2]
[350057755,1737594641843,-500.0,0.00019726,2]
[350057756,1737594641853,-500.0,0.00019726,2]
[350057757,1737594641862,-500.0,0.00019726,2]
[350057758,1737594641871,-500.0,0.00019726,2]
[350057759,1737594641880,-313.11,0.00019726,2]
[350057760,1737594641891,-500.0,0.00019726,2]
[350057761,1737594641902,-500.0,0.00019726,2]
[350057762,1737594641912,-500.0,0.00019726,2]
[350057763,1737594641921,-500.0,0.00019726,2]
[350057764,1737594641930,-500.0,0.00019726,2]
[350057765,1737594641940,-500.0,0.00019726,2]
[350057766,1737594641950,-500.0,0.00019726,2]
[350057767,1737594641961,-500.0,0.00019726,2]
[350057768,1737594641975,-500.0,0.00019726,2]
[350057769,1737594641985,-500.0,0.00019726,2]
[350057770,1737594642002,-500.0,0.00019726,2]
[350057771,1737594642011,-500.0,0.00019726,2]
[350057772,1737594642022,-500.0,0.00019726,2]
[350057773,1737594642032,-500.0,0.00019726,2]
[350057774,1737594642042,-500.0,0.00019726,2]
[350057775,1737594642053,-500.0,0.00019726,2]
[350057776,1737594642063,-500.0,0.00019824,2]
[350057777,1737594642072,-847.38,0.00019824,2]
[350057778,1737594642082,-500.0,0.00019824,2]
[350057779,1737594642092,-500.0,0.00019824,2]
[350057780,1737594642101,-858.14,0.00019824,2]
[350057781,1737594642111,-509.96,0.00019824,2]
[350057782,1737594642119,-642.87,0.00019824,2]
[350057783,1737594642130,-500.0,0.00019824,2]
[350057784,1737594642140,-500.0,0.00019824,2]
[350057785,1737594642151,-500.0,0.00019824,2]
[350057786,1737594642161,-954.95,0.00019824,2]
[350057787,1737594642170,-887.51,0.00019824,2]
[350057788,1737594642179,-500.0,0.00019824,2]
[350057789,1737594642190,-500.0,0.00019824,2]
[350057790,1737594642201,-1277.85,0.00019824,2]
[350057791,1737594642211,-500.0,0.00019824,2]
[350057792,1737594642221,-500.0,0.00019824,2]
[350057793,1737594642231,-549.55,0.00019824,2]
[350057794,1737594642241,-1753.68,0.00019824,2]
[350057795,1737594642250,-500.0,0.00019824,2]
[350057796,1737594642259,-665.69,0.00019824,2]
[350057797,1737594642269,-500.0,0.00019824,2]
[350057798,1737594642278,-528.27,0.00019824,2]
[350057799,1737594642287,-893.59,0.00019824,2]
[350057800,1737594642299,-698.1,0.00019824,2]
[350057801,1737594642308,-2201.44234707,0.00019878,2]
[350057802,1737594642318,-202.62151102,0.000199,2]
[350057803,1737594642327,-500.0,0.00019998,2]
[350057804,1737594642336,-500.0,0.00019998,2]
[350057805,1737594642348,-500.0,0.00019998,2]
[350057806,1737594642360,-500.0,0.00019998,2]
[350057807,1737594642369,-834.43,0.00019998,2]
[350057808,1737594642378,-533.78,0.00019998,2]
[350057809,1737594642388,-701.47,0.00019998,2]
[350057810,1737594642401,-1099.03,0.00019998,2]
[350057811,1737594642412,-500.0,0.00019998,2]
[350057812,1737594642421,-1207.66,0.00019998,2]
[350057813,1737594642432,-584.3,0.00019998,2]
[350057814,1737594642441,-663.61,0.00019998,2]
[350057815,1737594642450,-1123.9,0.00019998,2]
[350057816,1737594642459,-500.0,0.00019998,2]
[350057817,1737594642468,-570.62,0.00019998,2]
[350057818,1737594642478,-500.0,0.00019998,2]
[350057819,1737594642487,-500.0,0.00019998,2]
[350057820,1737594642496,-1008.17,0.00019998,2]
[350057821,1737594642505,-528.39,0.00019998,2]
[350057822,1737594642514,-500.0,0.00019999,2]
[350057823,1737594642523,-500.0,0.00019999,2]
[350057824,1737594642533,-591.31,0.00019999,2]
[350057826,1737594642542,-500.0,0.00019999,2]
[350057827,1737594642551,-500.0,0.00019999,2]
[350057828,1737594642560,-500.0,0.00019999,2]
[350057829,1737594642570,-500.0,0.00019999,2]
[350057830,1737594642579,-500.0,0.00019999,2]
[350057831,1737594642588,-500.0,0.00019999,2]
[350057833,1737594642598,-500.0,0.00019999,2]
[350057835,1737594642608,-500.0,0.00019999,2]
[350057837,1737594642618,-500.0,0.00019999,2]
[350057839,1737594642628,-500.0,0.00019999,2]
[350057841,1737594642637,-500.0,0.00019999,2]
[350057842,1737594642647,-500.0,0.00019999,2]
[350057843,1737594642658,-500.0,0.00019999,2]
[350057844,1737594642668,-500.0,0.00019999,2]
[350057845,1737594642677,-500.0,0.00019999,2]
[350057846,1737594642687,-500.0,0.00019999,2]
[350057847,1737594642697,-500.0,0.00019999,2]
[350057848,1737594642706,-500.0,0.00019999,2]
[350057850,1737594642716,-500.0,0.00019999,2]
[350057851,1737594642726,-500.0,0.00019999,2]
[350057853,1737594642735,-500.0,0.00019999,2]
[350057855,1737594642744,-500.0,0.00019999,2]
[350057856,1737594642754,-500.0,0.00019999,2]
[350057858,1737594642763,-500.0,0.00019999,2]
[350057859,1737594642772,-500.0,0.00019999,2]
[350057861,1737594642782,-500.0,0.00019999,2]
[350057863,1737594642791,-500.0,0.00019999,2]
[350057865,1737594642800,-500.0,0.00019999,2]
[350057866,1737594642809,-500.0,0.00019999,2]
[350057869,1737594642819,-500.0,0.00019999,2]
[350057872,1737594642828,-500.0,0.00019999,2]
[350057874,1737594642838,-500.0,0.00019999,2]
[350057876,1737594642848,-500.0,0.00019999,2]
[350057877,1737594642857,-518.63,0.00019999,2]
[350057879,1737594642867,-698.97,0.00019999,2]
[350057880,1737594642876,-500.0,0.00019999,2]
[350057881,1737594642885,-500.0,0.00019999,2]
[350057882,1737594642895,-1509.45,0.00019999,2]
[350057883,1737594642905,-623.27,0.00019999,2]
[350057884,1737594642914,-689.26,0.00019999,2]
[350057885,1737594642923,-500.0,0.00019999,2]
[350057886,1737594642933,-500.0,0.00019999,2]
[350057887,1737594642943,-500.0,0.00019999,2]
[350057888,1737594642955,-500.0,0.00019999,2]
[350057889,1737594642965,-500.0,0.00019999,2]
[350057890,1737594642975,-812.87,0.00019999,2]
[350057891,1737594642984,-1069.1,0.00019999,2]
[350057892,1737594642993,-1056.13,0.00019999,2]
[350057893,1737594643002,-500.0,0.00019999,2]
[350057894,1737594643011,-500.0,0.00019999,2]
[350057895,1737594643020,-500.0,0.00019999,2]
[350057896,1737594643030,-751.52,0.00019999,2]
[350057897,1737594643040,-500.0,0.00019999,2]
[350057898,1737594643049,-563.13,0.00019999,2]
[350057899,1737594643062,-1000.0,0.00019999,2]
[350057900,1737594643073,-642.30633818,0.00019999,2]
[350057901,1737594643083,-758.25,0.00019999,2]
[350057902,1737594643092,-2050.79,0.00019999,2]
[350057903,1737594643102,-1163.87,0.00019999,2]
[350057904,1737594643113,-1524.26,0.00019999,2]
[350057905,1737594643124,-500.0,0.00019999,2]
[350057906,1737594643136,-500.0,0.00019999,2]
[350057907,1737594643146,-514.7,0.00019999,2]
[350057908,1737594643157,-1237.23,0.00019999,2]
[350057909,1737594643167,-500.0,0.00019999,2]
[350057910,1737594643176,-500.0,0.00019999,2]
[350057911,1737594643185,-500.0,0.00019999,2]
[350057912,1737594643194,-1293.23,0.00019999,2]
[350057913,1737594643204,-718.49,0.00019999,2]
[350057914,1737594643212,-500.0,0.00019999,2]
[350057915,1737594643222,-500.0,0.00019999,2]
[350057916,1737594643231,-801.37,0.00019999,2]
[350057917,1737594643239,-500.0,0.00019999,2]
[350057918,1737594643248,-597.66,0.00019999,2]
[350057919,1737594643257,-500.0,0.00019999,2]
[350057920,1737594643267,-500.0,0.00019999,2]
[350057921,1737594643276,-500.0,0.00019999,2]
[350057922,1737594643286,-500.0,0.00019999,2]
[350057923,1737594643295,-1018.98,0.00019999,2]
[350057924,1737594643304,-500.0,0.00019999,2]
[350057925,1737594643314,-500.0,0.00019999,2]
[350057926,1737594643323,-500.0,0.00019999,2]
[350057927,1737594643332,-677.45,0.00019999,2]
[350057928,1737594643343,-634.28,0.00019999,2]
[350057929,1737594643354,-400.0,0.00019999,2]
[350057930,1737594643364,-500.0,0.00019999,2]
[350057931,1737594643373,-1419.48,0.00019999,2]
[350057932,1737594643382,-500.0,0.00019999,2]
[350057933,1737594643393,-500.0,0.00019999,2]
[350057934,1737594643402,-2512.85,0.00019999,2]
[350057935,1737594643414,-500.0,0.00019999,2]
[350057936,1737594643423,-500.0,0.00019999,2]
[350057937,1737594643434,-500.0,0.00019999,2]
[350057938,1737594643443,-500.0,0.00019999,2]
[350057939,1737594643453,-529.29,0.00019999,2]
[350057940,1737594643462,-500.0,0.00019999,2]
[350057941,1737594643471,-500.0,0.00019999,2]
[350057942,1737594643480,-500.0,0.00019999,2]
[350057943,1737594643489,-500.0,0.00019999,2]
[350057944,1737594643498,-500.0,0.00019999,2]
[350057945,1737594643507,-500.0,0.00019999,2]
[350057946,1737594643517,-1121.13,0.00019999,2]
[350057947,1737594643526,-607.36105658,0.00019999,2]
[350057948,1737594643535,-504.2,0.00019999,2]
[350057949,1737594643544,-243.96406405,0.00019999,2]
[350057950,1737594643554,-500.0,0.00019999,2]
[350057951,1737594643563,-500.0,0.00019999,2]
[350057952,1737594643573,-199.79,0.0002,14]
[350057953,1737594643582,-500.0,0.0002,2]
[350057954,1737594643591,-500.0,0.0002,2]
[350057955,1737594643601,-500.0,0.0002,2]
[350057956,1737594643610,-500.0,0.0002,2]
[350057957,1737594643619,-500.0,0.0002,2]
[350057958,1737594643628,-500.0,0.0002,2]
[350057959,1737594643637,-395.56194705,0.0002,2]
[350057960,1737594643647,-500.0,0.0002,2]
[350057961,1737594643656,-500.0,0.0002,2]
[350057962,1737594643666,-500.0,0.0002,2]
[350057963,1737594643676,-500.0,0.0002,2]
[350057964,1737594643686,-500.0,0.0002,2]
[350057965,1737594643695,-500.0,0.0002,2]
[350057966,1737594643705,-500.0,0.0002,2]
[350057967,1737594643715,-500.0,0.0002,2]
[350057968,1737594643725,-500.0,0.0002,2]
[350057969,1737594643734,-500.0,0.0002,2]
[350057970,1737594643745,-500.0,0.0002,2]
[350057971,1737594643754,-594.90015086,0.0002,2]
[350057972,1737594643763,-500.0,0.0002,2]
[350057973,1737594643773,-500.0,0.0002,2]
[350057974,1737594643781,-500.0,0.00020098,2]
[350057975,1737594643791,-847.38,0.00020098,2]
[350057976,1737594643801,-500.0,0.00020098,2]
[350057977,1737594643810,-500.0,0.00020098,2]
[350057978,1737594643819,-858.14,0.00020098,2]
[350057979,1737594643829,-509.96,0.00020098,2]
[350057980,1737594643839,-642.87,0.00020098,2]
[350057981,1737594643849,-500.0,0.00020098,2]
[350057982,1737594643859,-500.0,0.00020098,2]
[350057983,1737594643869,-500.0,0.00020098,2]
[350057984,1737594643878,-954.95,0.00020098,2]
[350057985,1737594643887,-887.51,0.00020098,2]
[350057986,1737594643897,-500.0,0.00020098,2]
[350057987,1737594643907,-500.0,0.00020098,2]
[350057988,1737594643915,-1277.85,0.00020098,2]
[350057989,1737594643925,-500.0,0.00020098,2]
[350057990,1737594643934,-549.55,0.00020098,2]
[350057991,1737594643943,-1753.68,0.00020098,2]
[350057992,1737594643952,-500.0,0.00020098,2]
[350057993,1737594643961,-665.69,0.00020098,2]
[350057994,1737594643971,-500.0,0.00020098,2]
[350057995,1737594643980,-528.27,0.00020098,2]
[350057996,1737594643990,-893.59,0.00020098,2]
[350057997,1737594643999,-698.1,0.00020098,2]
[350057998,1737594644008,-202.62151097,0.00020122,2]
[350057999,1737594644017,-2201.44234707,0.00020131,2]
[350058000,1737594644026,-357.90834179,0.00020172,2]
[350058001,1737594644034,-500.0,0.00020272,2]
[350058002,1737594644043,-500.0,0.00020272,2]
[350058003,1737594644053,-500.0,0.00020272,2]
[350058004,1737594644063,-500.0,0.00020272,2]
[350058005,1737594644072,-500.0,0.00020272,2]
[350058006,1737594644081,-834.43,0.00020272,2]
[350058007,1737594644090,-533.78,0.00020272,2]
[350058008,1737594644100,-701.47,0.00020272,2]
[350058009,1737594644109,-1099.03,0.00020272,2]
[350058010,1737594644118,-500.0,0.00020272,2]
[350058011,1737594644127,-1207.66,0.00020272,2]
[350058012,1737594644136,-584.3,0.00020272,2]
[350058013,1737594644146,-663.61,0.00020272,2]
[350058014,1737594644156,-1123.9,0.00020272,2]
[350058015,1737594644165,-570.62,0.00020272,2]
[350058016,1737594644175,-500.0,0.00020272,2]
[350058017,1737594644184,-500.0,0.00020272,2]
[350058018,1737594644193,-1008.17,0.00020272,2]
[350058019,1737594644203,-500.0,0.00020272,2]
[350058020,1737594644212,-395.40844161,0.00020272,2]
[350058021,1737594644222,-500.0,0.00020273,2]
[350058022,1737594644232,-500.0,0.00020273,2]
[350058023,1737594644241,-500.0,0.00020273,2]
[350058024,1737594644251,-500.0,0.00020273,2]
[350058025,1737594644261,-500.0,0.00020273,2]
[350058026,1737594644270,-500.0,0.00020273,2]
[350058027,1737594644279,-277.09,0.00020273,2]
[350058028,1737594644289,-591.31,0.00020273,2]
[350058029,1737594644298,-268.61055293,0.00020273,2]
[350058030,1737594644307,-500.0,0.00020273,2]
[350058031,1737594644316,-500.0,0.00020273,2]
[350058032,1737594644330,-500.0,0.00020273,2]
[350058033,1737594644339,-500.0,0.00020273,2]
[350058034,1737594644351,-500.0,0.00020273,2]
[350058035,1737594644361,-223.73813255,0.00020273,2]
[350058036,1737594644372,-500.0,0.00020273,2]
[350058037,1737594644381,-500.0,0.00020273,2]
[350058038,1737594644390,-500.0,0.00020273,2]
[350058039,1737594644407,-500.0,0.00020273,2]
[350058040,1737594644416,-414.9479071,0.00020273,2]
[350058041,1737594644426,-500.0,0.00020273,2]
[350058042,1737594644436,-500.0,0.00020273,2]
[350058043,1737594644445,-500.0,0.00020273,2]
[350058044,1737594644454,-500.0,0.00020273,2]
[350058045,1737594644463,-500.0,0.00020273,2]
[350058046,1737594644472,-500.0,0.00020273,2]
[350058047,1737594644481,-500.0,0.00020273,2]
[350058048,1737594644491,-500.0,0.00020273,2]
[350058049,1737594644500,-383.09750557,0.00020273,2]
[350058050,1737594644510,-427.28601408,0.00020273,2]
[350058051,1737594644520,-500.0,0.00020273,2]
[350058052,1737594644529,-500.0,0.00020273,2]
[350058053,1737594644538,-500.0,0.00020273,2]
[350058054,1737594644547,-500.0,0.00020273,2]
[350058055,1737594644556,-500.0,0.00020273,2]
[350058056,1737594644566,-500.0,0.00020273,2]
[350058057,1737594644575,-500.0,0.00020273,2]
[350058058,1737594644584,-500.0,0.00020273,2]
[350058059,1737594644593,-500.0,0.00020273,2]
[350058060,1737594644603,-500.0,0.00020273,2]
[350058061,1737594644612,-500.0,0.00020273,2]
[350058062,1737594644621,-500.0,0.00020273,2]
[350058063,1737594644630,-500.0,0.00020273,2]
[350058064,1737594644640,-500.0,0.00020273,2]
[350058065,1737594644649,-486.58374206,0.00020273,2]
[350058066,1737594644660,-500.0,0.00020273,2]
[350058067,1737594644669,-500.0,0.00020273,2]
[350058068,1737594644678,-500.0,0.00020273,2]
[350058069,1737594644688,-500.0,0.00020273,2]
[350058070,1737594644696,-500.0,0.00020273,2]
[350058071,1737594644705,-500.0,0.00020273,2]
[350058072,1737594644716,-500.0,0.00020273,2]
[350058073,1737594644726,-518.63,0.00020273,2]
[350058074,1737594644735,-698.97,0.00020273,2]
[350058075,1737594644745,-500.0,0.00020273,2]
[350058076,1737594644754,-500.0,0.00020273,2]
[350058077,1737594644764,-1509.45,0.00020273,2]
[350058078,1737594644774,-623.27,0.00020273,2]
[350058079,1737594644783,-689.26,0.00020273,2]
[350058080,1737594644801,-500.0,0.00020273,2]
[350058081,1737594644819,-500.0,0.00020273,2]
[350058082,1737594644828,-500.0,0.00020273,2]
[350058083,1737594644968,-500.0,0.00020273,2]
[350058084,1737594644994,-500.0,0.00020273,2]
[350058085,1737594645003,-812.87,0.00020273,2]
[350058086,1737594645012,-1069.1,0.00020273,2]
[350058087,1737594645022,-1056.13,0.00020273,2]
[350058088,1737594645032,-487.81665592,0.00020273,2]
[350058089,1737594645041,-500.0,0.00020273,2]
[350058090,1737594645050,-500.0,0.00020273,2]
[350058091,1737594645059,-751.52,0.00020273,2]
[350058092,1737594645069,-500.0,0.00020273,2]
[350058093,1737594645078,-563.13,0.00020273,2]
[350058094,1737594645087,-1000.0,0.00020273,2]
[350058095,1737594645095,-758.25,0.00020273,2]
[350058096,1737594645105,-2050.79,0.00020273,2]
[350058097,1737594645114,-1163.87,0.00020273,2]
[350058098,1737594645123,-1524.26,0.00020273,2]
[350058099,1737594645132,-500.0,0.00020273,2]
[350058100,1737594645141,-500.0,0.00020273,2]
[350058101,1737594645150,-514.7,0.00020273,2]
[350058102,1737594645161,-1237.23,0.00020273,2]
[350058103,1737594645170,-500.0,0.00020273,2]
[350058104,1737594645180,-500.0,0.00020273,2]
[350058105,1737594645189,-500.0,0.00020273,2]
[350058106,1737594645198,-1293.23,0.00020273,2]
[350058107,1737594645207,-718.49,0.00020273,2]
[350058108,1737594645216,-500.0,0.00020273,2]
[350058109,1737594645227,-500.0,0.00020273,2]
[350058110,1737594645235,-801.37,0.00020273,2]
[350058111,1737594645244,-500.0,0.00020273,2]
[350058112,1737594645254,-597.66,0.00020273,2]
[350058113,1737594645263,-500.0,0.00020273,2]
[350058114,1737594645272,-500.0,0.00020273,2]
[350058115,1737594645281,-500.0,0.00020273,2]
[350058116,1737594645290,-500.0,0.00020273,2]
[350058117,1737594645300,-1018.98,0.00020273,2]